fUST/lending_fUST_20240226
["ID","MTS","AMOUNT","RATE_DAILY","PERIOD"]
[315209629,1708936241096,-631.67993521,0.00019452,2]
[315209630,1708936241105,-500.0,0.00019452,2]
[315209631,1708936241114,-500.0,0.00019452,2]
[315209632,1708936241123,-1700.03,0.00019452,2]
[315209633,1708936241134,-500.0,0.00019452,2]
[315209634,1708936241143,-500.0,0.00019452,2]
[315209635,1708936241152,-500.0,0.00019452,2]
[315209636,1708936241161,-500.0,0.00019452,2]
[315209637,1708936241170,-500.0,0.00019452,2]
[315209638,1708936241179,-500.0,0.00019452,2]
[315209639,1708936241188,-500.0,0.00019452,2]
[315209640,1708936241197,-479.17651164,0.00019452,2]
[315209641,1708936241206,-500.0,0.00019452,2]
[315209642,1708936241215,-500.0,0.00019452,2]
[315209643,1708936241224,-500.0,0.00019452,2]
[315209644,1708936241233,-500.0,0.00019452,2]
[315209645,1708936241242,-500.0,0.00019452,2]
[315209646,1708936241252,-500.0,0.00019452,2]
[315209647,1708936241265,-500.0,0.00019452,2]
[315209648,1708936241274,-500.0,0.00019452,2]
[315209649,1708936241283,-1011.27,0.00019452,2]
[315209650,1708936241292,-500.0,0.00019452,2]
[315209651,1708936241301,-500.0,0.00019452,2]
[315209652,1708936241311,-500.0,0.00019452,2]
[315209653,1708936241320,-500.0,0.00019452,2]
[315209654,1708936241329,-500.0,0.00019452,2]
[315209655,1708936241339,-500.0,0.00019452,2]
[315209656,1708936241349,-500.85128667,0.00019452,2]
[315209657,1708936241359,-500.0,0.00019452,2]
[315209658,1708936241368,-500.0,0.00019452,2]
[315209659,1708936241380,-500.0,0.00019452,2]
[315209660,1708936241390,-684.74,0.00019452,2]
[315209661,1708936241399,-500.0,0.00019452,2]
[315209662,1708936241408,-500.0,0.00019452,2]
[315209663,1708936241418,-500.0,0.00019452,2]
[315209664,1708936241428,-500.0,0.00019452,2]
[315209665,1708936241439,-779.44,0.00019452,2]
[315209666,1708936241449,-4218.31,0.00019452,2]
[315209667,1708936241459,-500.0,0.00019452,2]
[315209668,1708936241468,-500.0,0.00019452,2]
[315209669,1708936241478,-1467.94,0.00019452,2]
[315209670,1708936241488,-499.53437694,0.00019452,2]
[315209671,1708936241498,-500.0,0.00019452,2]
[315209672,1708936241507,-500.0,0.00019452,2]
[315209673,1708936241517,-500.0,0.00019452,2]
[315209674,1708936241527,-500.0,0.00019452,2]
[315209675,1708936241536,-2941.06,0.00019452,2]
[315209676,1708936241546,-501.7897385,0.00019452,2]
[315209677,1708936241555,-752.54,0.00019452,2]
[315209678,1708936241565,-2762.77,0.00019452,2]
[315209679,1708936241575,-500.0,0.00019452,2]
[315209680,1708936241584,-500.0,0.00019452,2]
[315209681,1708936241594,-810.1601,0.00019452,2]
[315209682,1708936241604,-810.1601,0.00019452,2]
[315209683,1708936241613,-1870.84,0.00019452,2]
[315209684,1708936241623,-249.10033961,0.00019452,2]
[315209685,1708936241635,-500.0,0.00019452,2]
[315209686,1708936241645,-500.0,0.00019452,2]
[315209687,1708936241655,-500.0,0.00019452,2]
[315209688,1708936241664,-1000.0,0.00019452,2]
[315209689,1708936241673,-2590.4,0.00019452,2]
[315209690,1708936241682,-500.0,0.00019452,2]
[315209691,1708936241691,-2123.47,0.00019452,2]
[315209692,1708936241701,-500.0,0.00019452,2]
[315209693,1708936241710,-500.0,0.00019452,2]
[315209694,1708936241719,-500.0,0.00019452,2]
[315209695,1708936241728,-2088.94,0.00019452,2]
[315209696,1708936241737,-442.24473459,0.00019452,2]
[315209697,1708936241746,-500.0,0.00019452,2]
[315209698,1708936241755,-500.0,0.00019452,2]
[315209699,1708936241764,-500.0,0.00019452,2]
[315209700,1708936241774,-23193.98,0.00019452,2]
[315209701,1708936241783,-500.0,0.00019452,2]
[315209702,1708936241792,-500.0,0.00019452,2]
[315209703,1708936241801,-500.0,0.00019452,2]
[315209704,1708936241811,-500.0,0.00019452,2]
[315209705,1708936241820,-612.23784616,0.00019452,2]
[315209706,1708936241829,-1260.89,0.00019452,2]
[315209707,1708936241838,-500.0,0.00019452,2]
[315209708,1708936241847,-503.32885852,0.00019452,2]
[315209709,1708936241857,-500.0,0.00019452,2]
[315209710,1708936241866,-2801.09,0.00019452,2]
[315209711,1708936241875,-500.0,0.00019452,2]
[315209712,1708936241885,-500.0,0.00019452,2]
[315209713,1708936241894,-506.01947048,0.00019452,2]
[315209714,1708936241904,-500.0,0.00019452,2]
[315209715,1708936241913,-4344.96,0.00019452,2]
[315209716,1708936241923,-501.32910414,0.00019452,2]
[315209717,1708936241932,-539.47583065,0.00019452,2]
[315209718,1708936241941,-2291.28,0.00019452,2]
[315209719,1708936241951,-500.0,0.00019452,2]
[315209720,1708936241960,-699.57,0.00019452,2]
[315209721,1708936241969,-500.0,0.00019452,2]
[315209722,1708936241978,-500.0,0.00019452,2]
[315209723,1708936241987,-500.0,0.00019452,2]
[315209724,1708936241997,-500.0,0.00019452,2]
[315209725,1708936242006,-185.27418586,0.00019452,2]
[315209726,1708936242015,-500.0,0.00019452,2]
[315209727,1708936242024,-500.0,0.00019452,2]
[315209728,1708936242034,-500.0,0.00019452,2]
[315209729,1708936242044,-500.0,0.00019452,2]
[315209730,1708936242053,-500.0,0.00019452,2]
[315209731,1708936242156,-509.9265336,0.00019452,2]
[315209732,1708936242166,-500.0,0.00019452,2]
[315209733,1708936242175,-866.2,0.00019452,2]
[315209734,1708936242184,-1799.84,0.00019452,2]
[315209735,1708936242193,-500.0,0.00019452,2]
[315209736,1708936242202,-2282.25,0.00019452,2]
[315209738,1708936242212,-2514.37,0.00019452,2]
[315209739,1708936242221,-500.0,0.00019452,2]
[315209740,1708936242230,-500.0,0.00019452,2]
[315209741,1708936242239,-500.0,0.00019452,2]
[315209742,1708936242249,-8196.53,0.00019452,2]
[315209743,1708936242260,-500.0,0.00019452,2]
[315209744,1708936242270,-500.0,0.00019452,2]
[315209745,1708936242279,-502.15505867,0.00019452,2]
[315209746,1708936242288,-500.0,0.00019452,2]
[315209748,1708936242298,-868.21,0.00019452,2]
[315209750,1708936242307,-201.81516256,0.00019452,2]
[315209751,1708936242316,-500.0,0.00019452,2]
[315209754,1708936242325,-500.0,0.00019452,2]
[315209756,1708936242335,-500.0,0.00019452,2]
[315209757,1708936242345,-22658.04,0.00019452,2]
[315209758,1708936242354,-500.0,0.00019452,2]
[315209759,1708936242363,-500.0,0.00019452,2]
[315209760,1708936242373,-1283.38,0.00019452,2]
[315209761,1708936242382,-3587.74,0.00019452,2]
[315209762,1708936242392,-405.80118565,0.00019452,2]
[315209763,1708936242401,-500.0,0.00019452,2]
[315209764,1708936242411,-1691.94,0.00019452,2]
[315209765,1708936242420,-500.0,0.00019452,2]
[315209767,1708936242430,-153.0,0.00019452,2]
[315209769,1708936242439,-7330.41372259,0.0001947,2]
[315209773,1708936242449,-7330.41372259,0.00019472,2]
[315209775,1708936242458,-7330.41372259,0.00019475,2]
[315209776,1708936242467,-182.85476532,0.0001948,2]
[315209777,1708936242477,-182.85476532,0.00019482,2]
[315209779,1708936242486,-182.85476532,0.00019494,2]
[315209780,1708936242495,-9602.07581363,0.00019568,2]
[315209781,1708936242504,-3384.81215471,0.00019626,2]
[315209782,1708936242513,-172.93049177,0.00019626,2]
[315209783,1708936242522,-151.0,0.00019626,2]
[315209784,1708936242531,-151.0,0.00019626,2]
[315209785,1708936242541,-166.666666,0.00019627,2]
[315209786,1708936242549,-641.27,0.00019636,2]
[315209787,1708936242558,-24314.32664584,0.00019637,2]
[315209788,1708936242567,-5529.96122929,0.000197,2]
[315209789,1708936242576,-5529.96122929,0.000197,2]
[315209790,1708936242585,-5529.96122929,0.000197,2]
[315209791,1708936242595,-641.27,0.00019725,2]
[315209792,1708936242604,-641.27,0.00019725,2]
[315209793,1708936242613,-641.27,0.00019725,2]
[315209794,1708936242622,-641.27,0.00019725,2]
[315209795,1708936242632,-500.0,0.00019725,2]
[315209796,1708936242641,-200.86010344,0.00019725,2]
[315209797,1708936242650,-500.0,0.00019725,2]
[315209798,1708936242660,-599.3898383,0.00019725,2]
[315209799,1708936242669,-500.0,0.00019725,2]
[315209800,1708936242678,-500.0,0.00019725,2]
[315209801,1708936242687,-500.0,0.00019725,2]
[315209802,1708936242696,-500.0,0.00019725,2]
[315209803,1708936242705,-500.0,0.00019725,2]
[315209804,1708936242714,-500.0,0.00019725,2]
[315209805,1708936242722,-500.0,0.00019725,2]
[315209806,1708936242732,-500.0,0.00019725,2]
[315209807,1708936242741,-728.38,0.00019726,2]
[315209808,1708936242750,-436.77826182,0.00019726,2]
[315209809,1708936242759,-500.0,0.00019726,2]
[315209810,1708936242767,-500.0,0.00019726,2]
[315209811,1708936242777,-500.0,0.00019726,2]
[315209812,1708936242786,-580.4,0.00019726,2]
[315209813,1708936242795,-500.0,0.00019726,2]
[315209814,1708936242804,-500.0,0.00019726,2]
[315209815,1708936242813,-500.0,0.00019726,2]
[315209816,1708936242822,-500.0,0.00019726,2]
[315209817,1708936242831,-501.23396073,0.00019726,2]
[315209818,1708936242840,-500.0,0.00019726,2]
[315209819,1708936242849,-500.0,0.00019726,2]
[315209820,1708936242858,-503.09460402,0.00019726,2]
[315209821,1708936242867,-209.81817441,0.00019726,2]
[315209822,1708936242876,-500.0,0.00019726,2]
[315209823,1708936242885,-500.0,0.00019726,2]
[315209824,1708936242894,-278.92397509,0.00019726,2]
[315209825,1708936242903,-436.57904397,0.00019726,2]
[315209826,1708936242912,-500.0,0.00019726,2]
[315209827,1708936242920,-588.21769024,0.00019726,2]
[315209828,1708936242929,-621.03277362,0.00019726,2]
[315209829,1708936242938,-500.0,0.00019726,2]
[315209830,1708936242947,-378.09595608,0.00019726,2]
[315209831,1708936242956,-1527.13,0.00019726,2]
[315209832,1708936242965,-530.06,0.00019726,2]
[315209833,1708936242973,-501.70061197,0.00019726,2]
[315209834,1708936242982,-1600.04,0.00019726,2]
[315209835,1708936242991,-151.0,0.00019726,2]
[315209836,1708936243001,-151.0,0.00019726,2]
[315209837,1708936243010,-624.92,0.00019726,2]
[315209838,1708936243019,-500.0,0.00019726,2]
[315209839,1708936243028,-500.0,0.00019726,2]
[315209840,1708936243037,-1488.87,0.00019726,2]
[315209841,1708936243046,-833.88,0.00019726,2]
[315209842,1708936243055,-500.0,0.00019726,2]
[315209843,1708936243064,-601.56155229,0.00019726,2]
[315209844,1708936243073,-500.0,0.00019726,2]
[315209845,1708936243082,-500.0,0.00019726,2]
[315209846,1708936243091,-156.352017,0.00019726,2]
[315209847,1708936243100,-500.0,0.00019726,2]
[315209848,1708936243110,-500.0,0.00019726,2]
[315209849,1708936243119,-500.0,0.00019726,2]
[315209850,1708936243128,-500.0,0.00019726,2]
[315209851,1708936243137,-500.0,0.00019726,2]
[315209852,1708936243147,-500.0,0.00019726,2]
[315209853,1708936243155,-500.0,0.00019726,2]
[315209854,1708936243164,-2093.75,0.00019726,2]
[315209855,1708936243173,-501.65704131,0.00019726,2]
[315209856,1708936243182,-500.0,0.00019726,2]
[315209857,1708936243191,-500.0,0.00019726,2]
[315209858,1708936243200,-500.0,0.00019726,2]
[315209859,1708936243211,-500.0,0.00019726,2]
[315209860,1708936243220,-1700.03,0.00019726,2]
[315209861,1708936243230,-500.0,0.00019726,2]
[315209862,1708936243240,-500.0,0.00019726,2]
[315209863,1708936243249,-500.0,0.00019726,2]
[315209864,1708936243261,-500.0,0.00019726,2]
[315209865,1708936243270,-500.0,0.00019726,2]
[315209866,1708936243279,-505.95058571,0.00019726,2]
[315209867,1708936243288,-500.0,0.00019726,2]
[315209868,1708936243297,-646.85521638,0.00019726,2]
[315209869,1708936243306,-500.0,0.00019726,2]
[315209870,1708936243315,-500.0,0.00019726,2]
[315209871,1708936243324,-501.29954357,0.00019726,2]
[315209872,1708936243334,-500.0,0.00019726,2]
[315209873,1708936243344,-239.92493776,0.00019726,2]
[315209874,1708936243353,-500.0,0.00019726,2]
[315209875,1708936243363,-1011.27,0.00019726,2]
[315209876,1708936243372,-500.0,0.00019726,2]
[315209877,1708936243382,-500.0,0.00019726,2]
[315209878,1708936243392,-500.0,0.00019726,2]
[315209879,1708936243402,-500.0,0.00019726,2]
[315209880,1708936243411,-500.0,0.00019726,2]
[315209881,1708936243420,-501.72333826,0.00019726,2]
[315209882,1708936243430,-500.0,0.00019726,2]
[315209883,1708936243440,-500.0,0.00019726,2]
[315209884,1708936243450,-684.74,0.00019726,2]
[315209885,1708936243459,-503.09950777,0.00019726,2]
[315209886,1708936243469,-500.0,0.00019726,2]
[315209887,1708936243478,-500.0,0.00019726,2]
[315209888,1708936243487,-779.44,0.00019726,2]
[315209889,1708936243496,-4218.31,0.00019726,2]
[315209890,1708936243505,-500.0,0.00019726,2]
[315209891,1708936243515,-244.30017244,0.00019726,2]
[315209892,1708936243523,-1467.94,0.00019726,2]
[315209893,1708936243532,-502.09355324,0.00019726,2]
[315209894,1708936243542,-502.22509866,0.00019726,2]
[315209895,1708936243551,-500.0,0.00019726,2]
[315209896,1708936243561,-500.0,0.00019726,2]
[315209897,1708936243570,-2941.06,0.00019726,2]
[315209898,1708936243580,-752.54,0.00019726,2]
[315209899,1708936243588,-2762.77,0.00019726,2]
[315209900,1708936243598,-500.0,0.00019726,2]
[315209901,1708936243607,-500.0,0.00019726,2]
[315209902,1708936243616,-810.1601,0.00019726,2]
[315209903,1708936243625,-810.1601,0.00019726,2]
[315209904,1708936243635,-810.1601,0.00019726,2]
[315209905,1708936243644,-810.1601,0.00019726,2]
[315209906,1708936243654,-1870.84,0.00019726,2]
[315209907,1708936243662,-500.81546176,0.00019726,2]
[315209908,1708936243671,-1000.0,0.00019726,2]
[315209909,1708936243681,-2590.4,0.00019726,2]
[315209910,1708936243690,-500.0,0.00019726,2]
[315209911,1708936243699,-2123.47,0.00019726,2]
[315209912,1708936243708,-500.0,0.00019726,2]
[315209913,1708936243717,-500.0,0.00019726,2]
[315209914,1708936243727,-500.0,0.00019726,2]
[315209915,1708936243736,-2088.94,0.00019726,2]
[315209916,1708936243745,-500.0,0.00019726,2]
[315209917,1708936243754,-500.0,0.00019726,2]
[315209918,1708936243763,-500.0,0.00019726,2]
[315209919,1708936243772,-23193.98,0.00019726,2]
[315209920,1708936243781,-238.35007482,0.00019726,2]
[315209921,1708936243791,-500.0,0.00019726,2]
[315209922,1708936243800,-500.0,0.00019726,2]
[315209923,1708936243809,-1260.89,0.00019726,2]
[315209924,1708936243819,-500.0,0.00019726,2]
[315209925,1708936243828,-2801.09,0.00019726,2]
[315209926,1708936243837,-500.0,0.00019726,2]
[315209927,1708936243846,-500.0,0.00019726,2]
[315209928,1708936243855,-500.0,0.00019726,2]
[315209929,1708936243864,-4344.96,0.00019726,2]
[315209930,1708936243874,-2291.28,0.00019726,2]
[315209932,1708936243884,-500.0,0.00019726,2]
[315209934,1708936243893,-699.57,0.00019726,2]
[315209935,1708936243902,-500.0,0.00019726,2]
[315209936,1708936243911,-487.01483259,0.00019726,2]
[315209937,1708936243920,-500.0,0.00019726,2]
[315209938,1708936243928,-500.0,0.00019726,2]
[315209939,1708936243938,-500.0,0.00019726,2]
[315209941,1708936243947,-500.0,0.00019726,2]
[315209942,1708936243955,-492.25353522,0.00019726,2]
[315209943,1708936243964,-500.0,0.00019726,2]
[315209944,1708936243973,-436.52101816,0.00019726,2]
[315209945,1708936243981,-500.0,0.00019726,2]
[315209946,1708936243990,-866.2,0.00019726,2]
[315209947,1708936243999,-1799.84,0.00019726,2]
[315209948,1708936244008,-500.0,0.00019726,2]
[315209949,1708936244017,-2282.25,0.00019726,2]
[315209950,1708936244027,-2514.37,0.00019726,2]
[315209951,1708936244036,-500.0,0.00019726,2]
[315209952,1708936244046,-501.70449876,0.00019726,2]
[315209953,1708936244056,-507.00886275,0.00019726,2]
[315209954,1708936244065,-8196.53,0.00019726,2]
[315209955,1708936244074,-500.0,0.00019726,2]
[315209956,1708936244083,-500.0,0.00019726,2]
[315209957,1708936244092,-500.0,0.00019726,2]
[315209958,1708936244101,-868.21,0.00019726,2]
[315209959,1708936244110,-500.0,0.00019726,2]
[315209960,1708936244119,-500.0,0.00019726,2]
[315209961,1708936244128,-500.0,0.00019726,2]
[315209962,1708936244137,-22658.04,0.00019726,2]
[315209963,1708936244146,-500.0,0.00019726,2]
[315209964,1708936244155,-500.0,0.00019726,2]
[315209965,1708936244164,-1283.38,0.00019726,2]
[315209966,1708936244173,-3587.74,0.00019726,2]
[315209967,1708936244182,-500.0,0.00019726,2]
[315209968,1708936244191,-1691.94,0.00019726,2]
[315209969,1708936244199,-3384.81215469,0.00019768,2]
[315209970,1708936244208,-300.0,0.00019895,2]
[315209971,1708936244218,-3384.81215469,0.00019909,2]
[315209972,1708936244227,-306.0,0.00019918,2]
[315209973,1708936244236,-153.0,0.00019918,2]
[315209974,1708936244245,-153.0,0.00019918,2]
[315209975,1708936244254,-200.5826354,0.00019918,2]
[315209976,1708936244270,-5337.30879984,0.00019975,2]
[315209977,1708936244279,-641.27,0.00019981,2]
[315209978,1708936244289,-14885.27956934,0.00019982,2]
[315209979,1708936244298,-702.0990051,0.00019998,2]
[315209980,1708936244308,-289.88358592,0.00019998,2]
[315209981,1708936244317,-697.2497258,0.00019999,2]
[315209982,1708936244326,-641.27,0.00019999,2]
[315209983,1708936244335,-641.27,0.00019999,2]
[315209984,1708936244345,-641.27,0.00019999,2]
[315209985,1708936244354,-641.27,0.00019999,2]
[315209986,1708936244364,-728.38,0.0002,2]
[315209987,1708936244373,-500.0,0.0002,2]
[315209988,1708936244383,-229.82906431,0.0002,2]
[315209989,1708936244479,-500.0,0.0002,2]
[315209990,1708936244489,-580.4,0.0002,2]
[315209991,1708936244499,-327.83376191,0.0002,2]
[315209992,1708936244610,-172.16623809,0.0002,2]
[315209993,1708936244620,-453.73376191,0.0002,2]
[315209998,1708936244678,-500.0,0.00019452,2]
[315210000,1708936244687,-46.26623809,0.0002,2]
[315210001,1708936244696,-500.0,0.0002,2]
[315210002,1708936244705,-500.0,0.0002,2]
[315210003,1708936244714,-10243.58037549,0.0002,2]
[315210004,1708936244725,-1098.92018794,0.0002,2]
[315210005,1708936244735,-1527.13,0.0002,2]
[315210006,1708936244744,-530.06,0.0002,2]
[315210007,1708936244754,-1600.04,0.0002,2]
[315210008,1708936244763,-151.0,0.0002,2]
[315210009,1708936244773,-151.0,0.0002,2]
[315210010,1708936244782,-624.92,0.0002,2]
[315210011,1708936244791,-413.83176448,0.0002,2]
[315210012,1708936244802,-1488.87,0.0002,2]
[315210013,1708936244812,-833.88,0.0002,2]
[315210014,1708936244821,-500.0,0.0002,2]
[315210015,1708936244831,-500.0,0.0002,2]
[315210016,1708936244841,-500.0,0.0002,2]
[315210017,1708936244850,-500.0,0.0002,2]
[315210018,1708936244860,-500.0,0.0002,2]
[315210019,1708936244869,-500.0,0.0002,2]
[315210020,1708936244881,-197.24866108,0.0002,2]
[315210021,1708936244891,-12118.0,0.0002,2]
[315210022,1708936244900,-270.18126309,0.0002,2]
[315210023,1708936245141,-500.0,0.00019178,2]
[315210024,1708936245151,-151.0,0.00019637,2]
[315210025,1708936245159,-151.0,0.00019726,2]
[315210026,1708936245168,-1271.10186576,0.0002,2]
[315210028,1708936245180,-552.46687115,0.0002,2]
[315210029,1708936245189,-500.0,0.0002,2]
[315210030,1708936245198,-500.0,0.0002,2]
[315210031,1708936245207,-500.0,0.0002,2]
[315210032,1708936245216,-1543.08312884,0.0002,2]
[315210033,1708936245228,-156.94687116,0.0002,2]
[315210034,1708936245237,-500.0,0.0002,2]
[315210035,1708936245247,-500.0,0.0002,2]
[315210036,1708936245257,-500.0,0.0002,2]
[315210037,1708936245269,-500.0,0.0002,2]
[315210038,1708936245279,-500.0,0.0002,2]
[315210039,1708936245288,-500.0,0.0002,2]
[315210040,1708936245299,-500.0,0.0002,2]
[315210041,1708936245309,-595.39798691,0.0002,2]
[315210042,1708936245319,-1011.27,0.0002,2]
[315210043,1708936245328,-500.0,0.0002,2]
[315210044,1708936245338,-500.0,0.0002,2]
[315210045,1708936245348,-500.0,0.0002,2]
[315210046,1708936245358,-500.0,0.0002,2]
[315210047,1708936245368,-500.0,0.0002,2]
[315210048,1708936245377,-500.0,0.0002,2]
[315210049,1708936245388,-684.74,0.0002,2]
[315210050,1708936245397,-500.0,0.0002,2]
[315210051,1708936245407,-619.10188517,0.0002,2]
[315210052,1708936245415,-779.44,0.0002,2]
[315210053,1708936245425,-1181.01378676,0.0002,2]
[315210054,1708936245438,-3037.29621324,0.0002,2]
[315210055,1708936245447,-500.0,0.0002,2]
[315210056,1708936245457,-327.70378676,0.0002,2]
[315210060,1708936245696,-303.5785242,0.00019178,2]
[315210061,1708936245754,-196.4214758,0.00019178,2]
[315210062,1708936245764,-500.0,0.00019452,2]
[315210063,1708936245774,-238.31,0.00019726,2]
[315210064,1708936245783,-1140.23621324,0.0002,2]
[315210066,1708936245792,-500.0,0.0002,2]
[315210068,1708936245801,-500.0,0.0002,2]
[315210070,1708936245810,-39.30683811,0.0002,2]
[315210107,1708937071574,-162.78742756,0.00017089,2]
[315210110,1708937173868,-603.42370231,0.000201,3]
[315210111,1708937188992,250.0,0.00016696,2]
[315210114,1708937254465,502.206714,0.00016927,2]
[315210118,1708937403191,23922.21843088,0.0001707,2]
[315210171,1708937431978,-428.36024684,0.00017069,2]
[315210173,1708937431987,-640.23476295,0.00017069,2]
[315210175,1708937431997,-977.78156912,0.0001707,2]
[315210177,1708937432006,-181.46236333,0.000179,2]
[315210179,1708937432015,-4325.02017716,0.00018,2]
[315210204,1708937437936,-4894.91241629,0.00018,2]
[315210205,1708937437947,-9589.68869586,0.00018,2]
[315210206,1708937437957,-848.78381235,0.00018139,2]
[315210207,1708937437966,-7411.50952295,0.0001824,2]
[315210208,1708937437996,-636.02990378,0.0001824,2]
[315210209,1708937438008,-553.82706193,0.0001824,2]
[315210210,1708937438019,-5502.74440674,0.0001824,2]
[315210211,1708937438057,-20380.92009203,0.0001824,2]
[315210212,1708937438067,-153.0,0.00018878,2]
[315210213,1708937438076,-153.0,0.00018878,2]
[315210214,1708937438085,-153.0,0.00018878,2]
[315210215,1708937438094,-153.0,0.00019041,2]
[315210216,1708937438104,-172.93049177,0.00019078,2]
[315210217,1708937438113,-153.0,0.00019096,2]
[315210218,1708937438122,-153.0,0.00019096,2]
[315210219,1708937438131,-153.0,0.00019096,2]
[315210220,1708937438140,-306.0,0.00019096,2]
[315210221,1708937438150,-153.0,0.000191,2]
[315210222,1708937438159,-153.0,0.000191,2]
[315210223,1708937438169,-153.0,0.000191,2]
[315210224,1708937438178,-167.66075257,0.00019178,2]
[315210225,1708937438187,-353.52125509,0.00019178,2]
[315210226,1708937438197,-500.0,0.00019178,2]
[315210227,1708937438206,-500.0,0.00019178,2]
[315210228,1708937438216,-152.48583566,0.00019178,2]
[315210229,1708937438225,-151.48714558,0.00019178,2]
[315210230,1708937438234,-500.0,0.00019178,2]
[315210231,1708937438243,-500.0,0.00019178,2]
[315210232,1708937438253,-378.09595608,0.00019178,2]
[315210233,1708937438262,-501.70061197,0.00019178,2]
[315210234,1708937438272,-1326.13,0.00019178,2]
[315210235,1708937438281,-500.0,0.00019178,2]
[315210236,1708937438290,-500.0,0.00019178,2]
[315210237,1708937438299,-500.0,0.00019178,2]
[315210238,1708937438308,-750.48,0.00019178,2]
[315210239,1708937438318,-500.0,0.00019178,2]
[315210240,1708937438327,-601.56155229,0.00019178,2]
[315210241,1708937438336,-500.0,0.00019178,2]
[315210242,1708937438345,-500.0,0.00019178,2]
[315210243,1708937438355,-500.0,0.00019178,2]
[315210244,1708937438364,-500.0,0.00019178,2]
[315210245,1708937438374,-501.65704131,0.00019178,2]
[315210246,1708937438383,-500.0,0.00019178,2]
[315210247,1708937438392,-500.0,0.00019178,2]
[315210248,1708937438401,-599.15,0.00019178,2]
[315210249,1708937438411,-500.0,0.00019178,2]
[315210250,1708937438420,-500.0,0.00019178,2]
[315210251,1708937438429,-500.0,0.00019178,2]
[315210252,1708937438439,-1469.61,0.00019178,2]
[315210253,1708937438448,-500.0,0.00019178,2]
[315210254,1708937438458,-500.0,0.00019178,2]
[315210255,1708937438467,-507.460159,0.00019178,2]
[315210256,1708937438476,-500.0,0.00019178,2]
[315210257,1708937438485,-501.6271939,0.00019178,2]
[315210258,1708937438494,-442.6750125,0.00019178,2]
[315210259,1708937438503,-593.9,0.00019178,2]
[315210260,1708937438513,-581.51709917,0.00019178,2]
[315210261,1708937438521,-500.0,0.00019178,2]
[315210262,1708937438531,-500.0,0.00019178,2]
[315210263,1708937438540,-500.0,0.00019178,2]
[315210264,1708937438549,-500.0,0.00019178,2]
[315210265,1708937438559,-500.0,0.00019178,2]
[315210266,1708937438568,-500.0,0.00019178,2]
[315210267,1708937438577,-500.0,0.00019178,2]
[315210268,1708937438586,-500.0,0.00019178,2]
[315210269,1708937438595,-500.0,0.00019178,2]
[315210270,1708937438605,-318.97915559,0.00019178,2]
[315210271,1708937438614,-500.0,0.00019178,2]
[315210272,1708937438623,-501.78484159,0.00019178,2]
[315210273,1708937438633,-500.0,0.00019178,2]
[315210274,1708937438642,-492.25353522,0.00019178,2]
[315210275,1708937438652,-500.0,0.00019178,2]
[315210276,1708937438664,-501.70449876,0.00019178,2]
[315210277,1708937438674,-1177.36,0.00019178,2]
[315210278,1708937438683,-500.0,0.00019178,2]
[315210279,1708937438692,-500.0,0.00019178,2]